Workbook

Sheet 환불기준
A1: 구분 | E1: 청연 계절(3인실) 24박 | F1: 청연 계절(장애인실) 24박 | G1: 청연 장기(3인실) 65박 | H1: 청연 장기(장애인실) 65박 | K1: 계절입사 | L1: 장기입사
A2: 2026-여름학기 | D2: 1박 단가 | E2: 9890 | F2: 12060 | G2: 9890 | H2: 12060 | J2: 입사일 | K2: 2026-06-28 | L2: 2026-06-23
D3: 입사비 | E3: =E2*K4 -> 237360 | F3: =F2*K4 -> 289440 | G3: =G2*L4 -> 642850 | H3: =L4*H2 -> 783900 | J3: 퇴사일 | K3: 2026-07-22 | L3: 2026-08-27
D4: 위약금 | E4: =E3*0.2 -> 47472 | F4: =F3*0.2 -> 57888 | G4: =G3*0.2 -> 128570 | H4: =H3*0.2 -> 156780 | J4: 사용일(박) | K4: =K3-K2 -> 24 | L4: =L3-L2 -> 65
B5: 계절 | C5: 장기 | D5: 위약금 (절사) | E5: =ROUNDDOWN(E4,-1) -> 47470 | F5: 57880 | G5: =ROUNDDOWN(G4,-1) -> 128570 | H5: =ROUNDDOWN(H4,-1) -> 156780
A6: 장기입사일 | C6: 1 | D6: 2026-06-23 | G6: =G3-G5 -> 514280 | H6: =H3-H5 -> 627120
C7: 2 | D7: 2026-06-24 | G7: =G6-$G$2 -> 504390 | H7: =H6-$H$2 -> 615060
C8: 3 | D8: 2026-06-25 | G8: 494500 | H8: 603000
C9: 4 | D9: 2026-06-26 | G9: 484610 | H9: 590940
B10: 1 | C10: 5 | D10: 2026-06-27 | G10: 474720 | H10: 578880
A11: 계절입사일 | B11: 2 | C11: 6 | D11: 2026-06-28 | E11: =E3-E5 -> 189890 | F11: =F3-F5 -> 231560 | G11: 464830 | H11: 566820
B12: 3 | C12: 7 | D12: 2026-06-29 | E12: =E11-$E$2 -> 180000 | F12: =F11-$F$2 -> 219500 | G12: 454940 | H12: 554760
B13: 4 | C13: 8 | D13: 2026-06-30 | E13: =E12-$E$2 -> 170110 | F13: =F12-$F$2 -> 207440 | G13: 445050 | H13: 542700
B14: 5 | C14: 9 | D14: 2026-07-01 | E14: 160220 | F14: 195380 | G14: 435160 | H14: 530640
B15: 6 | C15: 10 | D15: 2026-07-02 | E15: 150330 | F15: 183320 | G15: 425270 | H15: 518580
B16: 7 | C16: 11 | D16: 2026-07-03 | E16: 140440 | F16: 171260 | G16: 415380 | H16: 506520
B17: 8 | C17: 12 | D17: 2026-07-04 | E17: 130550 | F17: 159200 | G17: 405490 | H17: 494460
B18: 9 | C18: 13 | D18: 2026-07-05 | E18: 120660 | F18: 147140 | G18: 395600 | H18: 482400
B19: 10 | C19: 14 | D19: 2026-07-06 | E19: 110770 | F19: 135080 | G19: 385710 | H19: 470340
B20: 11 | C20: 15 | D20: 2026-07-07 | E20: 100880 | F20: 123020 | G20: 375820 | H20: 458280
B21: 12 | C21: 16 | D21: 2026-07-08 | E21: 90990 | F21: 110960 | G21: 365930 | H21: 446220
B22: 13 | C22: 17 | D22: 2026-07-09 | E22: 81100 | F22: 98900 | G22: 356040 | H22: 434160
B23: 14 | C23: 18 | D23: 2026-07-10 | E23: 71210 | F23: 86840 | G23: 346150 | H23: 422100
B24: 15 | C24: 19 | D24: 2026-07-11 | E24: 61320 | F24: 74780 | G24: 336260 | H24: 410040
B25: 16 | C25: 20 | D25: 2026-07-12 | E25: 51430 | F25: 62720 | G25: 326370 | H25: 397980
B26: 17 | C26: 21 | D26: 2026-07-13 | E26: 41540 | F26: 50660 | G26: 316480 | H26: 385920
B27: 18 | C27: 22 | D27: 2026-07-14 | E27: 31650 | F27: 38600 | G27: 306590 | H27: 373860
B28: 19 | C28: 23 | D28: 2026-07-15 | E28: 21760 | F28: 26540 | G28: 296700 | H28: 361800
B29: 20 | C29: 24 | D29: 2026-07-16 | E29: 11870 | F29: 14480 | G29: 286810 | H29: 349740
A30: 계절입사비 환불기한(24박*80%) | B30: 21 | C30: 25 | D30: 2026-07-17 | E30: 1980 | F30: 2420 | G30: 276920 | H30: 337680
B31: 22 | C31: 26 | D31: 2026-07-18 | E31: =E30-$E$2 -> -7910 | F31: -9640 | G31: 267030 | H31: 325620
B32: 23 | C32: 27 | D32: 2026-07-19 | E32: -17800 | F32: -21700 | G32: 257140 | H32: 313560
C33: 28 | D33: 2026-07-20 | E33: -27690 | F33: -33760 | G33: 247250 | H33: 301500
C34: 29 | D34: 2026-07-21 | E34: -37580 | F34: -45820 | G34: 237360 | H34: 289440
A35: 계절퇴사일 | C35: 30 | D35: 2026-07-22 | E35: -47470 | F35: -57880 | G35: 227470 | H35: 277380
C36: 31 | D36: 2026-07-23 | E36: -57360 | F36: -69940 | G36: 217580 | H36: 265320
C37: 32 | D37: 2026-07-24 | E37: -67250 | F37: -82000 | G37: 207690 | H37: 253260
C38: 33 | D38: 2026-07-25 | E38: -77140 | F38: -94060 | G38: 197800 | H38: 241200
C39: 34 | D39: 2026-07-26 | E39: -87030 | F39: -106120 | G39: 187910 | H39: =H38-$H$2 -> 229140
C40: 35 | D40: 2026-07-27 | E40: -96920 | F40: -118180 | G40: 178020 | H40: 217080
C41: 36 | D41: 2026-07-28 | E41: -106810 | F41: -130240 | G41: 168130 | H41: 205020
C42: 37 | D42: 2026-07-29 | E42: -116700 | F42: -142300 | G42: 158240 | H42: 192960
C43: 38 | D43: 2026-07-30 | E43: -126590 | F43: -154360 | G43: 148350 | H43: 180900
C44: 39 | D44: 2026-07-31 | E44: -136480 | F44: -166420 | G44: 138460 | H44: 168840
C45: 40 | D45: 2026-08-01 | E45: -146370 | F45: -178480 | G45: 128570 | H45: 156780
C46: 41 | D46: 2026-08-02 | E46: -156260 | F46: -190540 | G46: 118680 | H46: 144720
C47: 42 | D47: 2026-08-03 | E47: -166150 | F47: -202600 | G47: 108790 | H47: 132660
C48: 43 | D48: 2026-08-04 | E48: -176040 | F48: -214660 | G48: 98900 | H48: 120600
C49: 44 | D49: 2026-08-05 | E49: -185930 | F49: -226720 | G49: 89010 | H49: 108540
C50: 45 | D50: 2026-08-06 | E50: -195820 | F50: -238780 | G50: 79120 | H50: 96480
C51: 46 | D51: 2026-08-07 | E51: -205710 | F51: -250840 | G51: 69230 | H51: 84420
C52: 47 | D52: 2026-08-08 | E52: -215600 | F52: -262900 | G52: 59340 | H52: 72360
C53: 48 | D53: 2026-08-09 | E53: -225490 | F53: -274960 | G53: 49450 | H53: 60300
C54: 49 | D54: 2026-08-10 | E54: -235380 | F54: -287020 | G54: 39560 | H54: 48240
C55: 50 | D55: 2026-08-11 | E55: -245270 | F55: -299080 | G55: 29670 | H55: 36180
C56: 51 | D56: 2026-08-12 | E56: -255160 | F56: -311140 | G56: 19780 | H56: 24120
A57: 장기입사비 환불기한(65박*80%) | C57: 52 | D57: 2026-08-13 | E57: -265050 | F57: -323200 | G57: 9890 | H57: 12060
C58: 53 | D58: 2026-08-14 | E58: -274940 | F58: -335260 | G58: =G57-$G$2 -> 0 | H58: 0
C59: 54 | D59: 2026-08-15 | E59: -284830 | F59: -347320 | G59: -9890 | H59: -12060
C60: 55 | D60: 2026-08-16 | E60: -294720 | F60: -359380 | G60: -19780 | H60: -24120
C61: 56 | D61: 2026-08-17 | E61: -304610 | F61: -371440 | G61: -29670 | H61: -36180
C62: 57 | D62: 2026-08-18 | E62: -314500 | F62: -383500 | G62: -39560 | H62: -48240
C63: 58 | D63: 2026-08-19 | E63: -324390 | F63: -395560 | G63: -49450 | H63: -60300
C64: 59 | D64: 2026-08-20 | E64: -334280 | F64: -407620 | G64: -59340 | H64: -72360
D65: 2026-08-21 | E65: -344170 | F65: -419680 | G65: -69230 | H65: -84420
D66: 2026-08-22 | E66: -354060 | F66: -431740 | G66: -79120 | H66: -96480
D67: 2026-08-23 | E67: -363950 | F67: -443800 | G67: -89010 | H67: -108540
D68: 2026-08-24 | E68: -373840 | F68: -455860 | G68: -98900 | H68: -120600
D69: 2026-08-25 | E69: -383730 | F69: -467920 | G69: =G68-$G$2 -> -108790 | H69: -132660
D70: 2026-08-26 | E70: -393620 | F70: -479980 | G70: -118680 | H70: -144720
A71: 장기퇴사일 | D71: 2026-08-27 | E71: -403510 | F71: -492040 | G71: -128570 | H71: -156780
